bitfinex/quotes_SOLUSD_20250522
["timestamp","ask_amount","ask_price","bid_price","bid_amount"]
[1747878469446,19.57573449,172.76,172.69,19.57573449]
[1747878469638,34.66,172.79,172.72,19.57573449]
[1747878469842,0.14216157,172.77,172.67,6.85319889]
[1747878470043,0.14216157,172.74,172.67,6.85319889]
[1747878470344,19.57573449,172.7,172.67,6.85319889]
[1747878470520,71.34,172.76,172.67,6.85319889]
[1747878470721,5.78871201,172.75,172.67,6.85319889]
[1747878470949,0.14216157,172.74,172.67,6.85319889]
[1747878471331,5.78871201,172.75,172.67,6.85319889]
[1747878471531,25.3644465,172.75,172.67,6.85319889]
[1747878471717,5.78871201,172.75,172.67,6.85319889]
[1747878471925,19.57573449,172.73,172.67,6.85319889]
[1747878472152,0.5,172.74,172.67,26.42893338]
[1747878472330,20.07573449,172.74,172.67,26.42893338]
[1747878472538,0.5,172.74,172.69,19.57573449]
[1747878472725,0.5,172.74,172.7,19.57573449]
[1747878473224,0.5,172.74,172.7,26.0]
[1747878473552,0.5,172.74,172.72,19.57573449]
[1747878473759,0.5,172.74,172.73,19.57573449]
[1747878474251,0.5,172.74,172.72,19.57573449]
[1747878474428,0.5,172.74,172.7,26.0]
[1747878474760,0.5,172.74,172.73,19.57573449]
[1747878474935,0.5,172.74,172.68,45.57573449]
[1747878475138,0.5,172.74,172.68,26.0]
[1747878475349,0.5,172.74,172.69,19.57573449]
[1747878475659,0.5,172.74,172.7,19.57573449]
[1747878476029,6.28919929,172.74,172.68,26.0]
[1747878476356,6.28919929,172.74,172.68,45.57573449]
[1747878476528,6.28919929,172.74,172.69,19.57573449]
[1747878477358,25.86493378,172.74,172.68,45.57573449]
[1747878477542,25.86493378,172.74,172.69,19.57573449]
[1747878477868,25.86493378,172.74,172.68,26.0]
[1747878477869,0.5,172.74,172.7,19.57573449]
[1747878478169,6.28905125,172.74,172.7,19.57573449]
[1747878479955,0.5,172.74,172.71,19.57573449]
[1747878480341,0.5,172.74,172.68,26.0]
[1747878480342,0.5,172.74,172.7,19.57573449]
[1747878480936,33.84648285,172.75,172.7,19.57573449]
[1747878481138,28.05771494,172.75,172.7,19.57573449]
[1747878481337,33.84647467,172.75,172.7,19.57573449]
[1747878481538,28.05771494,172.75,172.72,26.0]
[1747878482058,28.05771494,172.75,172.72,31.78940821]
[1747878482265,28.05771494,172.75,172.7,26.0]
[1747878482444,28.05771494,172.75,172.73,19.57573449]
[1747878482647,28.05771494,172.75,172.74,19.57573449]
[1747878483157,28.05771494,172.75,172.72,19.57573449]
[1747878483770,28.05771494,172.75,172.68,26.0]
[1747878483945,33.84649707,172.75,172.71,19.57573449]
[1747878484148,33.84649707,172.75,172.72,19.57573449]
[1747878484472,28.05771494,172.75,172.73,19.57573449]
[1747878484646,28.05771494,172.75,172.68,31.79104219]
[1747878484846,33.84656686,172.75,172.68,26.0]
[1747878485050,33.84656686,172.75,172.7,19.57573449]
[1747878485351,28.05771494,172.75,172.73,19.57573449]
[1747878485550,28.05771494,172.75,172.68,31.79089916]
[1747878485730,28.05771494,172.75,172.73,19.57573449]
[1747878485930,28.05771494,172.75,172.74,19.57573449]
[1747878486181,28.05771494,172.75,172.73,19.57573449]
[1747878486360,33.84656393,172.75,172.68,26.0]
[1747878486552,33.84656393,172.75,172.72,19.57573449]
[1747878486760,33.84656393,172.75,172.71,19.57573449]
[1747878488868,28.05771494,172.75,172.73,19.57573449]
[1747878489167,28.05771494,172.75,172.74,19.57573449]
[1747878490940,28.05771494,172.75,172.68,44.64964886]
[1747878491159,28.05771494,172.75,172.71,19.57573449]
[1747878491467,33.84642695,172.75,172.68,31.79099868]
[1747878491868,33.84642695,172.75,172.71,19.57573449]
[1747878492668,33.84642695,172.75,172.68,31.79099868]
[1747878492669,33.84642695,172.75,172.72,19.57573449]
[1747878492967,28.05771494,172.75,172.69,5.7906668]
[1747878493161,28.05771494,172.75,172.72,19.57573449]
[1747878493368,28.05771494,172.75,172.73,19.57573449]
[1747878493692,28.05771494,172.75,172.69,5.7906668]
[1747878493871,28.05771494,172.75,172.73,19.57573449]
[1747878495072,28.05771494,172.75,172.74,19.57573449]
[1747878495753,28.05771494,172.75,172.71,26.0]
[1747878495973,28.05771494,172.75,172.72,18.64964886]
[1747878496178,28.05771494,172.75,172.74,19.57573449]
[1747878496364,28.05771494,172.75,172.72,18.64964886]
[1747878496861,28.05771494,172.75,172.72,5.78965197]
[1747878497045,28.05771494,172.75,172.73,19.57573449]
[1747878497366,28.05771494,172.75,172.71,19.57573449]
[1747878497572,28.05771494,172.75,172.73,19.57573449]
[1747878497760,28.05771494,172.75,172.74,19.57573449]
[1747878500155,28.05771494,172.75,172.72,5.78968541]
[1747878500356,28.05771494,172.75,172.74,19.57573449]
[1747878500554,28.05771494,172.75,172.69,24.44037212]
[1747878500753,28.05771494,172.75,172.73,19.57573449]
[1747878501073,28.05771494,172.75,172.74,19.57573449]
[1747878502773,28.05771494,172.75,172.73,5.78931254]
[1747878502955,28.05771494,172.75,172.74,19.57573449]
[1747878503484,28.05771494,172.75,172.73,19.57573449]
[1747878503784,28.05771494,172.75,172.72,19.57573449]
[1747878504466,33.84656707,172.75,172.72,19.57573449]
[1747878505570,28.05771494,172.75,172.72,19.57573449]
[1747878506685,28.05771494,172.75,172.69,5.79065257]
[1747878506867,34.74,172.74,172.67,6.85319889]
[1747878507180,19.57573449,172.7,172.67,6.85319889]
[1747878507377,89.96283795,172.73,172.67,6.85319889]
[1747878507554,19.57573449,172.72,172.67,6.85319889]
[1747878507956,19.57573449,172.71,172.67,6.85319889]
[1747878508182,89.96283795,172.73,172.67,6.85319889]
[1747878508371,75.48938227,172.73,172.7,19.57573449]
[1747878508554,33.84645526,172.75,172.71,19.57573449]
[1747878508754,69.7,172.77,172.74,19.57573449]
[1747878508949,69.7,172.77,172.75,19.57573449]
[1747878509355,69.7,172.77,172.76,19.57573449]
[1747878509559,95.06398316,172.77,172.68,5.7910586]
[1747878509780,95.06398316,172.77,172.72,19.57573449]
[1747878509983,75.48824867,172.77,172.73,19.57573449]
[1747878510180,69.7,172.77,172.74,19.57573449]
[1747878510971,69.7,172.77,172.68,20.26870511]
[1747878511181,69.7,172.77,172.74,19.57573449]
[1747878511678,69.7,172.77,172.73,19.57573449]
[1747878511854,69.7,172.77,172.74,19.57573449]
[1747878512058,75.48806065,172.77,172.68,5.7910586]
[1747878512276,75.48806065,172.77,172.73,19.57573449]
[1747878513087,75.48806065,172.77,172.74,19.57573449]
[1747878513259,69.7,172.77,172.75,19.57573449]
[1747878514384,28.05771494,172.78,172.76,19.57573449]
[1747878514555,28.05771494,172.78,172.71,5.78999474]
[1747878514556,28.05771494,172.78,172.77,19.57573449]
[1747878517767,28.05771494,172.78,172.74,5.78900923]
[1747878517967,28.05771494,172.78,172.77,19.57573449]
[1747878521990,26.37597209,172.78,172.77,19.57573449]
[1747878522176,251.44,172.85,172.77,19.57573449]
[1747878522375,216.72,172.85,172.75,0.14216157]
[1747878522691,216.72,172.85,172.82,19.57573449]
[1747878522996,222.50541182,172.85,172.81,19.57573449]
[1747878523499,257.22541182,172.85,172.82,19.57573449]
[1747878523724,257.22541182,172.85,172.81,19.57573449]
[1747878523902,257.22541182,172.85,172.82,19.57573449]
[1747878524066,251.44,172.85,172.82,19.57573449]
[1747878524397,216.72,172.85,172.83,19.57573449]
[1747878524572,216.72,172.85,172.84,19.57573449]
[1747878524976,216.72,172.85,172.83,19.57573449]
[1747878525192,216.72,172.85,172.82,19.57573449]
[1747878525369,222.50536415,172.85,172.81,19.57573449]
[1747878525697,19.57573449,172.84,172.74,4.55652706]
[1747878525903,19.57573449,172.8,172.75,19.57573449]
[1747878526669,54.29573449,172.81,172.75,19.57573449]
[1747878526866,34.72,172.81,172.78,19.57573449]
[1747878527092,216.72,172.85,172.8,19.57573449]
[1747878527267,34.72,172.84,172.81,19.57573449]
[1747878527479,34.72,172.84,172.8,19.57573449]
[1747878527680,251.44,172.85,172.81,19.57573449]
[1747878527882,257.22539355,172.85,172.81,19.57573449]
[1747878528517,257.22539355,172.85,172.74,18.64964886]
[1747878528518,276.80112804,172.85,172.8,19.57573449]
[1747878529611,276.80112804,172.85,172.78,5.78756802]
[1747878529809,276.80112804,172.85,172.8,19.57573449]
[1747878530107,257.22539355,172.85,172.8,19.57573449]
[1747878530315,19.57573449,172.81,172.74,19.57573449]
[1747878530516,19.57573449,172.76,172.7,19.57573449]
[1747878530693,34.72,172.75,172.7,19.57573449]
[1747878530886,54.29573449,172.75,172.69,19.57573449]
[1747878531203,5.78904712,172.74,172.69,19.57573449]
[1747878532095,5.78904712,172.74,172.7,19.57573449]
[1747878532286,5.78904712,172.74,172.67,12.64452347]
[1747878532612,5.78904712,172.74,172.69,19.57573449]
[1747878532811,34.72,172.75,172.71,19.57573449]
[1747878533017,106.12818712,172.77,172.72,19.57573449]
[1747878533186,125.70392161,172.77,172.72,19.57573449]
[1747878533606,125.70392161,172.77,172.71,19.57573449]
[1747878534094,106.12818712,172.77,172.72,19.57573449]
[1747878534295,106.12818712,172.77,172.73,19.57573449]
[1747878534296,100.34,172.77,172.73,19.57573449]
[1747878534489,100.34,172.77,172.69,5.79047045]
[1747878534490,19.57573449,172.8,172.75,19.57573449]
[1747878534812,34.72,172.79,172.75,19.57573449]
[1747878535220,5.78770691,172.78,172.75,19.57573449]
[1747878535523,5.78770691,172.78,172.74,19.57573449]
[1747878536994,5.78770691,172.78,172.68,24.44070746]
[1747878537201,5.78770691,172.78,172.74,19.57573449]
[1747878537806,25.3634414,172.78,172.68,5.7910586]
[1747878538012,19.57573449,172.77,172.72,19.57573449]
[1747878538310,19.57573449,172.76,172.71,19.57573449]
[1747878538498,19.57573449,172.77,172.72,19.57573449]
[1747878538705,5.78770691,172.78,172.72,19.57573449]
[1747878538907,25.3634414,172.78,172.73,19.57573449]
[1747878540625,25.3640354,172.77,172.72,19.57573449]
[1747878540812,5.78830091,172.77,172.72,19.57573449]
[1747878541013,25.36350508,172.78,172.73,19.57573449]
[1747878541407,5.78777059,172.78,172.73,19.57573449]
[1747878541601,5.78777059,172.78,172.74,19.57573449]
[1747878542600,19.57573449,172.79,172.74,19.57573449]
[1747878542800,25.36315476,172.79,172.74,19.57573449]
[1747878543003,5.78695013,172.81,172.74,5.78901447]
[1747878543202,40.52695013,172.81,172.74,5.78901447]
[1747878543727,5.78627171,172.83,172.78,19.57573449]
[1747878544024,40.52627171,172.83,172.79,19.57573449]
[1747878544424,40.52627171,172.83,172.74,5.78901447]
[1747878544607,40.52627171,172.83,172.78,19.57573449]
[1747878545410,19.57573449,172.82,172.73,5.78938227]
[1747878545733,19.57573449,172.82,172.77,19.57573449]
[1747878545928,60.1020062,172.83,172.78,19.57573449]
[1747878546114,40.52627171,172.83,172.78,19.57573449]
[1747878547005,40.52627171,172.83,172.79,19.57573449]
[1747878547824,34.74,172.83,172.8,19.57573449]
[1747878548125,222.50544683,172.85,172.81,19.57573449]
[1747878549304,222.50544683,172.85,172.75,14.47137629]
[1747878549608,222.50544683,172.85,172.81,19.57573449]
[1747878550327,222.50544683,172.85,172.75,73.47137629]
[1747878550560,222.50544683,172.85,172.82,19.57573449]
[1747878550714,216.72,172.85,172.82,19.57573449]
[1747878550911,216.72,172.85,172.84,19.57573449]
[1747878551247,126.48760257,172.89,172.84,19.57573449]
[1747878551905,126.48760257,172.89,172.86,19.57573449]
[1747878551906,10.53186808,172.89,172.86,19.57573449]
[1747878552132,16.31605156,172.89,172.85,19.57573449]
[1747878552717,10.53186808,172.89,172.85,19.57573449]
[1747878552929,16.31592908,172.89,172.85,19.57573449]
[1747878553134,19.57573449,172.87,172.78,5.78770691]
[1747878553440,19.57573449,172.85,172.78,5.78770691]
[1747878553643,19.57573449,172.86,172.81,19.57573449]
[1747878554128,5.78536303,172.85,172.81,19.57573449]
[1747878554534,5.78536303,172.85,172.82,19.57573449]
[1747878554836,19.57573449,172.87,172.82,19.57573449]
[1747878555416,19.57573449,172.84,172.79,19.57573449]
[1747878555711,19.57573449,172.83,172.78,19.57573449]
[1747878555938,81.21573449,172.83,172.78,19.57573449]
[1747878556245,81.21573449,172.83,172.72,37.69443909]
[1747878556246,25.3621018,172.82,172.72,4.57109913]
[1747878556424,19.57573449,172.81,172.76,19.57573449]
[1747878556810,25.3621018,172.82,172.77,19.57573449]
[1747878557233,5.78636731,172.82,172.78,19.57573449]
[1747878557405,67.42605374,172.83,172.79,19.57573449]
[1747878557626,67.42605374,172.83,172.73,26.0]
[1747878557837,19.57573449,172.82,172.77,19.57573449]
[1747878558029,5.78670215,172.81,172.77,19.57573449]
[1747878558257,5.78670215,172.81,172.76,19.57573449]
[1747878558258,25.36243664,172.81,172.76,19.57573449]
[1747878558443,25.36243664,172.81,172.75,19.57573449]
[1747878559159,25.36243664,172.81,172.72,5.78965665]
[1747878559160,5.78670215,172.81,172.76,19.57573449]
[1747878559463,25.36243664,172.81,172.76,19.57573449]
[1747878559671,5.78670215,172.81,172.77,19.57573449]
[1747878560167,25.36243664,172.81,172.76,19.57573449]
[1747878560659,19.57573449,172.79,172.74,19.57573449]
[1747878560831,19.57573449,172.77,172.72,19.57573449]
[1747878561652,34.72,172.79,172.72,19.57573449]
[1747878561856,34.72,172.79,172.67,11.45596716]
[1747878561857,25.3634414,172.78,172.73,19.57573449]
[1747878562060,19.57573449,172.77,172.72,19.57573449]
[1747878562254,5.78770691,172.78,172.72,19.57573449]
[1747878562551,19.57573449,172.77,172.72,19.57573449]
[1747878562753,40.50739747,172.79,172.74,19.57573449]
[1747878562960,40.50739747,172.79,172.68,20.26870511]
[1747878562961,40.50739747,172.79,172.76,19.57573449]
[1747878563259,34.72,172.79,172.76,19.57573449]
[1747878563443,5.78710732,172.8,172.77,19.57573449]
[1747878563765,5.78670215,172.81,172.77,19.57573449]
[1747878564251,34.72,172.82,172.78,19.57573449]
[1747878564456,34.72,172.82,172.73,18.64964886]
[1747878564457,54.29573449,172.82,172.77,19.57573449]
[1747878564641,19.57573449,172.8,172.75,19.57573449]
[1747878565329,40.5064002,172.82,172.75,19.57573449]
[1747878565330,5.7864002,172.82,172.75,19.57573449]
[1747878565532,5.7864002,172.82,172.79,19.57573449]
[1747878565732,5.78603251,172.83,172.79,19.57573449]
[1747878566458,59.72,172.84,172.8,19.57573449]
[1747878566661,59.72,172.86,172.83,19.57573449]
[1747878567040,59.72,172.86,172.76,26.0]
[1747878567352,59.72,172.86,172.82,19.57573449]
[1747878567544,59.72,172.86,172.83,19.57573449]
[1747878567740,19.57573449,172.84,172.71,26.0]
[1747878568047,19.57573449,172.84,172.68,8.28689946]
[1747878568048,19.57573449,172.75,172.68,8.28689946]
[1747878568253,19.57573449,172.74,172.69,19.57573449]
[1747878568781,79.29573449,172.75,172.7,19.57573449]
[1747878569274,79.29573449,172.75,172.68,8.28689946]
[1747878569275,19.57573449,172.73,172.68,8.28689946]
[1747878569438,19.57573449,172.72,172.67,6.85319889]
[1747878569852,5.79005268,172.71,172.67,26.42893338]
[1747878570760,74.1925502,172.75,172.69,19.57573449]
[1747878570960,74.1925502,172.75,172.67,6.85319889]
[1747878570961,14.4725502,172.75,172.67,6.85319889]
[1747878571268,19.57573449,172.73,172.68,19.57573449]
[1747878571442,85.08478161,172.74,172.69,19.57573449]
[1747878572258,65.50904712,172.74,172.7,19.57573449]
[1747878572437,65.50904712,172.74,172.71,19.57573449]
[1747878572438,59.72,172.74,172.71,19.57573449]
[1747878572656,19.57573449,172.76,172.73,19.57573449]
[1747878572657,57.78,172.76,172.73,19.57573449]
[1747878572888,57.78,172.76,172.74,19.57573449]
[1747878573384,57.78,172.76,172.73,19.57573449]
[1747878574760,57.78,172.76,172.67,32.85319889]
[1747878574960,57.78,172.76,172.73,19.57573449]
[1747878575169,57.78,172.76,172.74,19.57573449]
[1747878577375,57.78,172.76,172.75,19.57573449]
[1747878578585,63.56656107,172.82,172.75,25.3644465]
[1747878578761,63.56656107,172.82,172.78,19.57573449]
[1747878579562,97.60821385,172.82,172.71,5.79005268]
[1747878579762,97.60821385,172.82,172.75,19.57573449]
[1747878579763,19.57573449,172.79,172.75,19.57573449]
[1747878580062,19.57573449,172.79,172.74,19.57573449]
[1747878580783,2.85699183,172.8,172.68,31.79079906]
[1747878580987,19.57573449,172.77,172.68,31.79079906]
[1747878581285,54.29573449,172.79,172.74,19.57573449]
[1747878581793,5.78770691,172.78,172.74,19.57573449]
[1747878582967,60.08317371,172.79,172.74,19.57573449]
[1747878583390,40.50743922,172.79,172.75,19.57573449]
[1747878584494,34.72,172.79,172.76,19.57573449]
[1747878584670,57.78,172.8,172.78,19.57573449]
[1747878585379,57.78,172.8,172.68,10.0]
[1747878585380,83.142901,172.8,172.67,21.33124004]
[1747878585581,34.72,172.79,172.72,19.57573449]
[1747878585781,5.78837693,172.76,172.69,5.79068978]
[1747878585984,5.78837693,172.76,172.72,19.57573449]
[1747878586468,25.36411142,172.76,172.71,19.57573449]
[1747878587689,5.78837693,172.76,172.72,19.57573449]
[1747878587990,5.78812763,172.77,172.73,19.57573449]
[1747878588293,5.78774157,172.78,172.74,19.57573449]
[1747878589373,25.36347606,172.78,172.73,19.57573449]
[1747878589690,25.36347606,172.78,172.7,5.79016102]
[1747878589890,25.36347606,172.78,172.73,19.57573449]
[1747878590497,5.78774157,172.78,172.74,19.57573449]
[1747878591268,34.72,172.79,172.74,19.57573449]
[1747878591476,98.30729323,172.8,172.76,19.57573449]
[1747878592095,19.57573449,172.79,172.7,26.0]
[1747878592280,19.57573449,172.78,172.73,19.57573449]
[1747878592870,5.7880419,172.77,172.73,19.57573449]
[1747878593378,25.36377639,172.77,172.72,19.57573449]
[1747878593896,19.19082099,172.77,172.72,13.40277909]
[1747878595684,5.7880419,172.77,172.73,13.40277909]
[1747878596300,5.78737195,172.79,172.72,13.40277909]
[1747878596499,8.66560582,172.82,172.78,13.40277909]
[1747878596799,34.74,172.86,172.81,13.40277909]
[1747878596971,34.74,172.86,172.82,13.40277909]
[1747878596972,5.78536303,172.85,172.82,13.40277909]
[1747878597297,192.74,172.87,172.83,13.40277909]
[1747878597298,96.3647652,172.87,172.83,13.40277909]
[1747878597805,61.6247652,172.87,172.83,13.40277909]
[1747878599074,77.85380246,172.87,172.82,13.40277909]
[1747878599275,77.85380246,172.87,172.81,13.40277909]
[1747878599785,84.08799274,172.87,172.81,19.63696937]
[1747878600102,84.08799274,172.87,172.82,19.63696937]
[1747878600481,84.08799274,172.87,172.76,26.0]
[1747878600482,118.80799274,172.87,172.81,19.63696937]
[1747878601000,99.17102337,172.87,172.83,19.63696937]
[1747878601202,90.56,172.87,172.84,19.63696937]
[1747878601396,216.64,172.88,172.86,19.63696937]
[1747878601893,53.94,172.91,172.87,19.63696937]
[1747878602092,53.94,172.91,172.9,19.63696937]
[1747878602900,53.94,172.91,172.89,19.63696937]
[1747878603285,53.94,172.91,172.9,19.63696937]
[1747878605385,53.94,172.91,172.86,5.78502142]
[1747878605587,53.94,172.91,172.89,19.63696937]
[1747878606083,59.72346884,172.91,172.89,19.63696937]
[1747878606284,79.36043821,172.91,172.86,19.63696937]
[1747878609406,59.72346884,172.91,172.87,19.63696937]
[1747878609596,53.94,172.91,172.89,19.63696937]
[1747878611087,53.94,172.91,172.9,19.63696937]
[1747878611310,53.85422428,172.91,172.9,19.63696937]
[1747878611607,5.78201792,172.95,172.9,19.63696937]
[1747878611806,59.28349268,173.03,172.94,19.63696937]
[1747878612105,5.77967864,173.02,172.92,19.63696937]
[1747878612299,5.77967864,173.02,172.93,18.64964886]
[1747878612492,5.77967864,173.02,172.92,19.63696937]
[1747878612798,5.77967864,173.02,172.99,19.63696937]
[1747878613102,5.77967864,173.02,172.91,18.64964886]
[1747878613103,5.77967864,173.02,172.98,19.63696937]
[1747878613482,5.77967864,173.02,172.92,5.78301208]
[1747878613694,25.41664801,173.02,172.96,19.63696937]
[1747878613903,5.77967864,173.02,172.98,19.63696937]
[1747878614990,5.77967864,173.02,172.99,19.63696937]
[1747878615210,5.77967864,173.02,172.98,19.63696937]
[1747878615507,25.41664801,173.02,172.92,5.78301939]
[1747878615804,19.63696937,173.01,172.95,19.63696937]
[1747878615980,19.63696937,173.01,172.91,26.0]
[1747878616185,19.63696937,173.01,172.96,19.63696937]
[1747878616387,25.41664801,173.02,172.97,19.63696937]
[1747878616706,39.86584463,173.02,172.97,19.63696937]
[1747878617113,20.22887526,173.02,172.93,5.78262075]
[1747878617302,52.08,173.03,173.0,19.63696937]
[1747878618714,57.85949014,173.03,173.0,19.63696937]
[1747878619108,77.49645951,173.03,172.95,5.78181879]
[1747878619290,57.85949014,173.03,172.99,19.63696937]
[1747878621921,57.85949014,173.03,173.0,19.63696937]
[1747878622296,57.85949014,173.03,172.99,19.63696937]
[1747878624120,57.85949014,173.03,173.0,19.63696937]
[1747878624327,52.08,173.03,173.0,19.63696937]
[1747878624497,57.85947944,173.03,172.95,5.78197167]
[1747878624696,57.85947944,173.03,172.99,19.63696937]
[1747878626916,19.63696937,173.02,172.97,19.63696937]
[1747878627604,77.49644881,173.03,172.98,19.63696937]
[1747878627832,52.08,173.03,173.0,19.63696937]
[1747878628130,52.08,173.03,173.01,19.63696937]
[1747878628875,57.85938307,173.03,173.01,19.63696937]
[1747878629607,77.49635244,173.03,172.98,19.63696937]
[1747878629802,57.85938307,173.03,172.99,19.63696937]
[1747878630731,57.85938307,173.03,173.0,19.63696937]
[1747878630732,52.08,173.03,173.0,19.63696937]
[1747878630943,52.08,173.03,173.02,19.63696937]
[1747878631505,52.08,173.03,173.01,19.63696937]
[1747878631712,52.08,173.03,173.02,13.35744889]
[1747878632713,13.35744889,173.09,173.02,13.35744889]
[1747878632714,5.77838139,173.06,173.02,13.35744889]
[1747878632919,5.77838139,173.06,173.03,13.35744889]
[1747878633929,5.77800889,173.07,173.03,13.35744889]
[1747878634944,5.77800889,173.07,173.04,13.35744889]
[1747878635324,5.77800889,173.07,173.03,13.35744889]
[1747878636132,5.77767506,173.08,173.04,13.35744889]
[1747878636357,5.77767506,173.08,173.03,13.35744889]
[1747878636534,5.77767506,173.08,173.06,13.35744889]
[1747878636929,55.99737736,173.09,173.06,13.35744889]
[1747878637314,50.22,173.09,173.08,13.35744889]
[1747878637621,7.79266336,173.15,173.08,13.35744889]
[1747878637622,5.77567286,173.14,173.08,13.35744889]
[1747878637933,5.77567286,173.14,173.1,13.35744889]
[1747878638244,33.57230391,173.14,173.09,13.35744889]
[1747878638544,13.35744889,173.12,173.07,13.35744889]
[1747878638920,13.35744889,173.13,173.07,13.35744889]
[1747878639750,5.77634011,173.12,173.07,13.35744889]
[1747878640444,5.77634011,173.12,173.08,13.35744889]
[1747878641044,5.77634011,173.12,173.07,13.35744889]
[1747878641235,5.77634011,173.12,173.0,32.5011448]
[1747878641236,13.35744889,173.09,173.0,4.55066729]
[1747878641541,13.35744889,173.1,173.05,13.35744889]
[1747878641754,5.77734126,173.09,173.05,13.35744889]
[1747878642042,5.77734126,173.09,173.06,13.35744889]
[1747878642518,5.77734126,173.09,173.05,13.35744889]
[1747878643165,5.77734126,173.09,173.06,13.35744889]
[1747878643321,5.77667379,173.11,173.06,13.35744889]
[1747878644442,5.77667379,173.11,173.08,13.35744889]
[1747878644636,5.77600646,173.13,173.09,13.35744889]
[1747878644844,5.775711,173.14,173.1,13.35744889]
[1747878645431,5.775711,173.14,173.04,13.35744889]
[1747878645432,13.35744889,173.11,173.04,13.35744889]
[1747878645636,13.35744889,173.08,173.02,13.35744889]
[1747878645835,19.13570754,173.07,173.02,13.35744889]
[1747878646043,5.77825865,173.07,173.02,13.35744889]
[1747878646430,5.77825865,173.07,173.03,13.35744889]
[1747878646645,5.77825865,173.07,173.04,13.35744889]
[1747878647747,5.77825865,173.07,173.04,19.58685351]
[1747878647948,5.77825865,173.07,173.03,19.58685351]
[1747878650750,5.77825865,173.07,172.99,31.78060709]
[1747878651048,19.58685351,173.06,173.0,19.58685351]
[1747878651384,5.77867668,173.05,173.0,19.58685351]
[1747878651759,25.36553019,173.05,172.99,19.58685351]
[1747878652051,19.58685351,173.04,172.99,19.58685351]
[1747878652242,19.58685351,173.04,172.98,19.58685351]
[1747878652646,19.58685351,173.04,172.93,5.78237743]
[1747878652647,19.58685351,173.01,172.93,4.56008598]
[1747878652845,19.58685351,173.01,172.96,19.58685351]
[1747878653049,48.24,173.01,172.98,19.58685351]
[1747878653550,48.24,173.01,172.99,19.58685351]
[1747878654954,48.24,173.01,172.97,19.58685351]
[1747878655331,54.02002129,173.01,172.97,19.58685351]
[1747878655546,48.24,173.01,172.98,19.58685351]
[1747878655851,73.60693534,173.01,172.96,19.58685351]
[1747878656354,54.02008183,173.01,172.96,19.58685351]
[1747878657369,73.60693534,173.01,172.96,19.58685351]
[1747878657569,54.02008183,173.01,172.96,19.58685351]
[1747878658447,54.02008183,173.01,172.97,19.58685351]
[1747878659538,48.24,173.01,172.97,19.58685351]
[1747878659747,48.24,173.01,172.98,19.58685351]
[1747878660357,48.24,173.01,172.99,19.58685351]
[1747878660736,48.24,173.01,172.98,19.58685351]
[1747878661745,48.24,173.01,172.99,19.58685351]
[1747878665158,48.24,173.01,173.0,19.58685351]
[1747878665759,34.68,173.05,173.0,25.36720033]
[1747878665950,34.68,173.05,173.03,19.58685351]
[1747878666761,82.92,173.07,173.04,19.58685351]
[1747878666957,82.92,173.07,173.06,19.58685351]
[1747878667263,48.24,173.07,173.06,19.58685351]
[1747878667578,48.24,173.07,173.05,19.58685351]
[1747878668375,48.24,173.07,173.06,19.58685351]
[1747878668765,48.24,173.07,173.01,5.77988027]
[1747878668944,48.24,173.07,173.0,26.0]
[1747878669146,54.01820845,173.07,173.04,19.58685351]
[1747878669655,54.01820845,173.07,173.04,13.35420515]
[1747878670357,54.01820845,173.07,173.0,26.0]
[1747878670560,54.01820845,173.07,173.02,13.35420515]
[1747878670561,67.3724136,173.07,173.02,13.35420515]
[1747878670756,13.35420515,173.06,173.01,13.35420515]
[1747878670957,34.68,173.05,173.01,13.35420515]
[1747878671673,34.68,173.05,173.02,13.35420515]
[1747878672378,48.24,173.07,173.04,13.35420515]
[1747878672593,48.24,173.07,173.06,13.35420515]
[1747878672949,48.24,173.13,173.06,13.35420515]
[1747878673158,82.92,173.13,173.1,13.35420515]
[1747878673359,82.92,173.13,173.11,13.35420515]
[1747878673673,82.92,173.13,173.09,13.35420515]
[1747878673923,82.92,173.13,173.02,77.64964886]
[1747878673924,13.35420515,173.11,173.06,13.35420515]
[1747878674253,13.35420515,173.1,173.04,13.35420515]
[1747878674454,5.77767506,173.08,173.04,13.35420515]
[1747878674670,40.45767506,173.08,173.02,26.0]
[1747878674874,40.45767506,173.08,173.05,13.35420515]
[1747878675250,40.45767506,173.08,173.04,13.35420515]
[1747878675562,53.81188021,173.08,173.03,13.35420515]
[1747878676395,48.24,173.07,173.03,13.35420515]
[1747878676570,48.24,173.07,173.06,13.35420515]
[1747878676961,88.69609304,173.13,173.06,13.35420515]
[1747878677287,82.92,173.13,173.11,13.35420515]
[1747878677458,82.92,173.13,173.12,13.35420515]
[1747878677673,82.92,173.13,173.12,19.56827706]
[1747878677877,48.24,173.13,173.12,19.56827706]
[1747878680711,48.24,173.13,173.12,25.34461717]